Cogmind - Beta 16 @@@ ROGUE MODE // 2025.11.07 @ 16:32:47 Player: Cameron Result: Destroyed by S-10 Pest with Light Assault Rifle Performance ------------- Evolutions (2) 1000 Regions Visited (3) 600 Robots Destroyed (46) 230 Value Destroyed (1261) 1261 Prototype IDs (3) 60 Alien Tech Used (0) 0 Bonus (0) 0 TOTAL SCORE: 3151 Bonus ------- None Cogmind --------- Core Integrity 0/550 Matter 300/300 Energy 99/100 System Corruption 2% Temperature Cool (0) Movement Core (50) Location -8/Materials Parts ------- > --- POWER (1) -------- (None) > --- PROPULSION (4) --- (None) > --- UTILITY (4) ------ (None) > --- WEAPON (2) ------- (None) > --- INVENTORY (5) ---- Reinforced Ion Engine Improved Heat Sink High-capacity Matter Pod (200) High-powered Tractor Beam Field Recycling Unit (100) Peak State ------------ > --- POWER ------------ Light Deuterium Engine > --- PROPULSION ------- Aluminum Leg Aluminum Leg Aluminum Leg Aluminum Leg > --- UTILITY ---------- Medium Storage Unit Core Shielding Propulsion Shielding High-powered Tractor Beam > --- WEAPON ----------- Autogun Shotgun > --- INVENTORY -------- Reinforced Ion Engine Aluminum Leg Improved Heat Sink Compact Battery High-capacity Matter Pod Backup Plating I High-powered Tractor Beam Field Recycling Unit Beam Rifle Improved Datajack [Rating: 19] Favorites ----------- Power Ion Engine Engine Ion Engine Propulsion Aluminum Leg Leg Aluminum Leg Wheel Compact Wheel Hover Unit Hover Unit Flight Unit Flight Unit Utility Medium Storage Unit Device High-powered Tractor Beam Storage Medium Storage Unit Hackware Hacking Suite Protection Core Shielding Weapon Light Assault Rifle Energy Gun Particle Gun Energy Cannon Beam Cannon Ballistic Gun Light Assault Rifle Special Melee Weapon Datajack Build | -11 -10 -9 -8 ------- Run | Yrd Mat Mat Mat Slots Evolved 4 | . . 2 2 Power . | . . . . Propulsion 2 | . . 2 . Utility 2 | . . . 2 Weapon . | . . . . Parts Attached 61 | 6 7 32 16 Power 8 | 1 1 3 3 Engine 8 | 1 1 3 3 Core . | . . . . Reactor . | . . . . Propulsion 28 | 2 4 17 5 Treads . | . . . . Leg 10 | 2 . 5 3 Wheel 3 | . 1 2 . Hover 13 | . 3 10 . Flight 2 | . . . 2 Utility 11 | 1 2 4 4 Device 3 | . . 1 2 Storage 5 | 1 2 2 . Processor . | . . . . Hackware 1 | . . . 1 Protection 2 | . . 1 1 Artifact . | . . . . Weapon 14 | 2 . 8 4 Energy Gun 3 | . . 2 1 Energy Cannon 2 | . . 1 1 Ballistic Gun 7 | 2 . 4 1 Ballistic Cannon . | . . . . Launcher . | . . . . Special Weapon . | . . . . Impact Weapon . | . . . . Slashing Weapon . | . . . . Piercing Weapon . | . . . . Special Melee Weapon 2 | . . 1 1 Unidentified Prototypes 1 | . . 1 . Parts Lost 40 | . 3 17 20 Power 4 | . 1 2 1 Propulsion 22 | . 1 12 9 Utility 5 | . . 1 4 Weapon 9 | . 1 2 6 Highest Loss Streak 11 | . 2 11 11 To Critical Strikes . | . . . . Average Backups 9 | 1 14 7 7 Power . | . . . . Propulsion 2 | . 5 2 1 Utility 4 | . 6 3 4 Weapon 1 | . 2 1 . Tool/Special . | . . . . Unused Backups 16 | . 1 9 6 Power 1 | . . 1 . Propulsion . | . . . . Utility 14 | . 1 8 5 Weapon 1 | . . . 1 Tool/Special . | . . . . Average Slot Usage (%) 85 | . 84 88 80 Engine 10 | . 13 10 8 Leg 13 | . 5 10 27 Wheel 3 | . 9 1 . Hover 12 | . 5 24 . Device 3 | . . 3 6 Storage 15 | . 23 11 11 Protection 5 | . . 5 13 Energy Cannon 1 | . . 2 . Ballistic Gun 16 | . 26 14 9 Special Melee Weapon 1 | . . 2 . Peak Build Rating 19 | 6 8 13 19 Average Rating 9 | 4 7 10 13 On Entrance 6 | . 6 8 12 Avg Prop Armor Cover (%) 6 | . 7 6 . Naked Turns 13 | . . . 13 Heaviest Build 92 | 12 92 25 30 Greatest Support 40 | 20 20 40 40 Greatest Overweight (x) 9 | 1 5 2 9 Average Overweight (x) . | . 2 . . Largest Inventory Capacity 25 | 8 25 25 10 Average Capacity 12 | 7 20 8 9 Most Carried 25 | 3 25 22 10 Average Carried 9 | 1 14 7 7 Final Capacity 25 | 8 25 10 5 Final Carried 23 | 3 23 10 5 Class Distribution -------------------- 57% | Mutant 42% | Scavenger-Mutant Dominant Class ---------------- Mutant | -10/Materials Mutant | -9/Materials Scavenger-Mutant | -8/Materials Resources | -11 -10 -9 -8 ----------- Run | Yrd Mat Mat Mat Matter Collected 1464 | 208 170 836 250 Remotely 203 | . . . 203 Salvage Created 1653 | . 201 1229 223 Parts 110 | . 18 79 13 Haulers Intercepted 2 | . . 2 . Recyclers Shooed . | . . . . Parts Field Recycled 8 | . . . 8 Retrieved Matter 110 | . . . 110 Parts Self-Destructed . | . . . . Prevented . | . . . . Parts Restored . | . . . . Kills | -11 -10 -9 -8 ------- Run | Yrd Mat Mat Mat Combat Hostiles Destroyed 35 | . 8 23 4 Guns 32 | . 8 20 4 Cannons 3 | . . 3 . Classes Destroyed 12 | . 4 7 1 Worker 3 | . . 3 . Builder 1 | . 1 . . Tunneler 1 | . 1 . . Hauler 2 | . . 2 . Recycler 1 | . . 1 . Operator 3 | . . 2 1 Swarmer 6 | . 6 . . Grunt 21 | . 2 17 2 Brawler 1 | . . 1 . Duelist 1 | . . 1 . Sentry 5 | . . 4 1 Specialist 1 | . . . 1 Best Kill Streak 12 | . 4 12 2 Combat Bots Only 11 | . 3 11 2 Max Kills in Single Turn 2 | . 2 2 1 Gunslinging 1 | . 1 1 . Exploded . | . . . . Melee . | . . . . Uniques/NPCs Destroyed . | . . . . Combat | -11 -10 -9 -8 -------- Run | Yrd Mat Mat Mat Hostile Shots Fired 517 | . 76 215 226 Missed 193 | . 25 81 87 Hits 324 | . 51 134 139 Melee 6 | . . 5 1 Projectile 318 | . 51 129 138 Critical Strikes 8 | . 1 3 4 Actively Blocked 1 | . . . 1 Damage Taken 4045 | . 516 1772 1757 Core 1136 | . 187 395 554 Absorbed by Shields . | . . . . Redirected to Shielding 97 | . . 32 65 Core Remaining (%) 42 | 100 25 1 . Volleys Fired 154 | . 40 90 24 Largest 2 | . 2 2 2 Hottest 80 | . 40 80 76 Shots Fired 248 | . 69 144 35 Gun 219 | . 69 120 30 Cannon 29 | . . 24 5 Launcher . | . . . . Special . | . . . . Kinetic 209 | . 69 117 23 Thermal 34 | . . 27 7 Explosive . | . . . . Electromagnetic 5 | . . . 5 Robot Hit Streak 17 | . 4 12 17 Robot Miss Streak 8 | . 5 8 2 Penetration Max . | . . . . Secondary Targets 5 | . 2 2 1 Max Gunslinging Chain 1 | . 1 1 1 Shots Hit Robots 160 | . 35 96 29 Core Hits 84 | . 18 52 14 Critical Kills . | . . . . Critical Parts Destroyed 1 | . . 1 . Critical Strikes 2 | . . 2 . Burn 1 | . . 1 . Destroy 1 | . . 1 . Melee Attacks 2 | . . 2 . Impact . | . . . . Slashing . | . . . . Piercing . | . . . . Sneak Attacks . | . . . . Combat Hostiles . | . . . . Follow-up Attacks . | . . . . Damage Inflicted 2106 | . 352 1290 464 Guns 1687 | . 317 1027 343 Cannons 381 | . . 263 118 Explosions . | . . . . Melee . | . . . . Ramming 38 | . 35 . 3 Kinetic 1567 | . 317 994 256 Thermal 383 | . . 296 87 Explosive . | . . . . Electromagnetic 118 | . . . 118 Impact . | . . . . Slashing . | . . . . Piercing . | . . . . Highest Corruption 2 | . . . 2 Average Corruption 2 | . . . 2 Corruption Purged . | . . . . Corruption Blocked . | . . . . Overload Shots . | . . . . Overflow Damage 31 | . 15 16 . Projectiles 16 | . . 16 . Explosions . | . . . . Melee 15 | . 15 . . Knockbacks 1 | . . . 1 Impact 1 | . . . 1 Kinetic . | . . . . Secondary . | . . . . Self-Inflicted Damage 18 | . 17 . 1 Shots . | . . . . Rammed 2 | . 1 . 1 Targets Rammed 4 | . 1 . 3 Kicked 2 | . . . 2 Crushed . | . . . . Highest Temperature 296 | . 24 296 54 Average Temperature 57 | . 6 71 23 Received Heat Transfer 1188 | . 186 723 279 Siege Activations . | . . . . Martial Activations . | . . . . Shielding Activations . | . . . . Robots Disrupted . | . . . . Combat Hostiles . | . . . . Robots Corrupted . | . . . . Combat Hostiles . | . . . . Parts Fried 3 | . 3 . . Impact Corruptions 1 | . 1 . . Robots Melted . | . . . . Combat Hostiles . | . . . . Parts Melted 3 | . . 2 1 Heat Transferred 925 | . . 703 222 Parts Sabotaged . | . . . . Parts Stolen . | . . . . Parts Stripped . | . . . . Power Chain Reactions . | . . . . Alert | -11 -10 -9 -8 ------- Run | Yrd Mat Mat Mat Maximum Alert Level 1 | . . 1 . Low Security (%) 86 | 100 100 68 100 Level 1 13 | . . 31 . Level 2 . | . . . . Level 3 . | . . . . Level 4 . | . . . . Level 5 . | . . . . High Security . | . . . . Max Security . | . . . . Peak Influence 378 | . 104 378 175 Initial 159 | . . 20 159 Average 100 | . 53 134 113 Influence Increases 1234 | . 253 753 228 Destroy 0b10 Robot/C 700 | . 160 460 80 Destroy 0b10 Robot/NC 55 | . 10 40 5 Destroy Leader 184 | . 30 124 30 Successful Hack 67 | . 38 22 7 Disable Machine 15 | . . 15 . Destroy Structure 3 | . . 2 1 Lose Combat Pursuer 210 | . 15 90 105 Influence Decreases 1227 | . 204 424 599 Entered New Map 248 | . . 29 219 Time Decay 618 | . 174 264 180 Lost Part 361 | . 30 131 200 Squads Dispatched 9 | . 1 5 3 Investigation 2 | . . 2 . Extermination . | . . . . Reinforcement 7 | . 1 3 3 Assault . | . . . . Garrison . | . . . . Intercept . | . . . . Searches Triggered . | . . . . Construction Impeded . | . . . . Haulers Reinforced . | . . . . Active Scanning Responses . | . . . . Cargo Convoy Interrupts . | . . . . Stealth | -11 -10 -9 -8 --------- Run | Yrd Mat Mat Mat Distress Signals 9 | . 2 3 4 Communications Jammed . | . . . . Distress Signals . | . . . . Times Spotted 80 | . 17 37 26 Peak Tracking Total 13 | . 6 13 11 Tactical Retreats 8 | . 1 3 4 Traps | -11 -10 -9 -8 ------- Run | Yrd Mat Mat Mat Traps Triggered . | . . . . Indirectly . | . . . . Trap Hack Attempts . | . . . . Triggered . | . . . . Disarmed . | . . . . Reprogrammed . | . . . . Reused . | . . . . Traps Extracted . | . . . . Installed . | . . . . Triggered . | . . . . Machines | -11 -10 -9 -8 ---------- Run | Yrd Mat Mat Mat Machines Disabled 1 | . . 1 . Max in Single Turn 1 | . . 1 . Machines Repaired . | . . . . Machines Dismantled . | . . . . Machines Sabotaged . | . . . . Overloaded Fab Kills . | . . . . Hacking | -11 -10 -9 -8 --------- Run | Yrd Mat Mat Mat Machines Accessed 13 | . 5 5 3 Terminals 9 | . 4 3 2 Fabricators . | . . . . Repair Stations 2 | . 1 1 . Recycling Units . | . . . . Scanalyzers 2 | . . 1 1 Garrison Access . | . . . . Total Hacks 34 | . 13 14 7 Successful 16 | . 7 6 3 Failed 18 | . 6 8 4 Catastrophic 4 | . 1 2 1 Database Lockouts . | . . . . Manual 7 | . 3 3 1 Terminals 24 | . 12 7 5 Fabricators . | . . . . Repair Stations 3 | . 1 2 . Recycling Units . | . . . . Scanalyzers 7 | . . 5 2 Garrison Access . | . . . . Terminal Hacks 9 | . 7 1 1 Prototype ID Bank 1 | . 1 . . Branch Access Points 1 | . 1 . . Emergency Access Points 2 | . 1 1 . Locate Traps 1 | . 1 . . Reinforcement Status 1 | . 1 . . Registered Components 2 | . 1 . 1 Zone Layout 1 | . 1 . . Fabricator Hacks . | . . . . Repair Station Hacks 1 | . . 1 . Refit 1 | . . 1 . Recycling Unit Hacks . | . . . . Scanalyzer 6 | . . 4 2 Retrieve Study 6 | . . 4 2 Garrison Access Hacks . | . . . . Unauthorized Hacks . | . . . . Terminals . | . . . . Fabricators . | . . . . Repair Stations . | . . . . Recycling Units . | . . . . Scanalyzers . | . . . . Garrison Access . | . . . . Data Cores Recovered . | . . . . Used . | . . . . Hacking Detections 11 | . 5 4 2 Full Trace Events 4 | . 2 2 . Feedback Events . | . . . . Feedback Blocked . | . . . . Robot Schematics Acquired . | . . . . Robots Built . | . . . . Authchips . | . . . . Time . | . . . . Total Robot Build Rating . | . . . . Part Schematics Acquired . | . . . . Parts Built . | . . . . Authchips . | . . . . Time . | . . . . Total Part Build Rating . | . . . . Part Studies Acquired 6 | . . 4 2 Parts Repaired . | . . . . Time . | . . . . Parts Recycled . | . . . . Recycled Matter . | . . . . Retrieved Matter . | . . . . Retrieved Components . | . . . . Parts Scanalyzed . | . . . . Part Schematics Acquired . | . . . . Parts Damaged . | . . . . Bothacking | -11 -10 -9 -8 ------------ Run | Yrd Mat Mat Mat Used RIF Installer . | . . . . Robots Hacked 2 | . . 2 . Non-combat . | . . . . Combat 2 | . . 2 . Robot Hacks Applied 2 | . . 2 . parse_system 2 | . . 2 . Relay Couplers Released . | . . . . Fabnet Peak Effective % . | . . . . Robots Rewired . | . . . . Allies Hacked . | . . . . Hacks Repelled . | . . . . Allies | -11 -10 -9 -8 -------- Run | Yrd Mat Mat Mat Total Allies . | . . . . Largest Group . | . . . . Highest-Rated Group . | . . . . Highest-Rated Ally . | . . . . Total Orders . | . . . . Ally Attacks . | . . . . Total Damage . | . . . . Kills . | . . . . Allies Corrupted . | . . . . Allies Melted . | . . . . Intel | -11 -10 -9 -8 ------- Run | Yrd Mat Mat Mat Active Infowar (turns) 202 | . . 202 . Terrain 202 | . . 202 . Robot Analysis Total . | . . . . Derelict Logs Recovered . | . . . . Drone Launches . | . . . . Drone Recoveries . | . . . . Exploration | -11 -10 -9 -8 ------------- Run | Yrd Mat Mat Mat Turns Passed 1579 | 66 453 698 362 Spaces Moved 988 | 41 229 485 233 Core 54 | 6 . 17 31 Treads . | . . . . Legs 392 | 35 51 104 202 Wheels 186 | . 136 50 . Hover 356 | . 42 314 . Flight . | . . . . Fastest Speed 48 | 50 56 48 50 Average Speed 98 | 133 141 71 107 Slowest Speed 500 | 190 175 180 500 Overloaded Moves . | . . . . Propulsion Burnouts . | . . . . Robots Hopped . | . . . . Potential Cave-ins . | . . . . Cave-ins Triggered . | . . . . Exploration Rate (%) 30 | 3 42 51 26 Regions Visited 3 Branch Regions . Pre-discovered Areas . | . . . . Known Exits Taken . | . . . . Unknown Exits Taken 3 | 1 1 1 . Scrap Searched . | . . . . Spaces Dug . | . . . . Terrain Destroyed . | . . . . Melee . | . . . . Projectile . | . . . . AOE . | . . . . Terrain Rammed . | . . . . Walls Destroyed . | . . . . Machines Disabled . | . . . . Actions | -11 -10 -9 -8 --------- Run | Yrd Mat Mat Mat Total 1385 | 49 302 718 316 Wait 62 | . . 54 8 Move 985 | 40 228 484 233 Hop . | . . . . Pick Up 61 | 3 24 24 10 Fast Attach 16 | 6 . 5 5 Attach 30 | . 4 17 9 Detach 6 | . 1 2 3 Swap 29 | . 3 18 8 Drop 36 | . 1 22 13 Fire 154 | . 40 90 24 Melee 2 | . . 2 . Ram 2 | . 1 . 1 Kick 2 | . . . 2 Crush . | . . . . Escape Stasis . | . . . . Rewire . | . . . . Trap . | . . . . Miscellaneous . | . . . . Route ------- -11/Scrapyard -10/Materials (discovered 3 exits: *Mat / Min x2) -9/Materials (discovered 2 exits: *Mat / [*Min]) -8/Materials History --------- Turn | Location | Event 44 | -11/Scrapyard | Discovered new exit (range 15) 67 | -11/Scrapyard | Entered Materials 151 | -10/Materials | Identified exit to Mines 314 | -10/Materials | Build established: Mutant 482 | -10/Materials | Core integrity fell below 50% 507 | -10/Materials | Discovered new exit (range 7) 520 | -10/Materials | Entered another Materials area 520 | -9/Materials | Evolved 2 slots: Propulsion x2 674 | -9/Materials | Lost 3 parts (3n) 794 | -9/Materials | Discovered new exit (range 16) 901 | -9/Materials | Core integrity fell below 50% 929 | -9/Materials | Lost 11 parts (2p7n2w) 952 | -9/Materials | Discovered new exit (range 5) 995 | -9/Materials | Core integrity fell below 20% 1047 | -9/Materials | Destroyed 11 combat bots 1218 | -9/Materials | Entered another Materials area 1218 | -8/Materials | Evolved 2 slots: Utility x2 1337 | -8/Materials | Build established: Scavenger-Mutant 1486 | -8/Materials | Lost 8 parts (1p3n1u3w) 1564 | -8/Materials | Core integrity fell below 50% 1572 | -8/Materials | Core integrity fell below 20% 1580 | -8/Materials | Destroyed by S-10 Pest with Light Assault Rifle Last Messages --------------- 01564_ G-47 Trooper unfolds itself. 01564_ Critical hit (Burn: +37). 01565_ S-10 Pest destroyed. 01565_ Slug penetrates R-06 Scavenger. 01565_ R-06 Scavenger destroyed. 01566_ K-01 Serf collects debris. 01566_ Beam Rifle+ destroyed. 01568_ Acquired Flight Unit. 01568_ Penetrated by Slug. 01568_ Flight Unit destroyed. 01568_ S-10 Pest destroyed. 01569_ K-01 Serf collects debris. 01570_ Acquired Flight Unit. 01571_ Flight Unit destroyed. 01571_ System corrupted by crushing effect (+2). 01571_ Penetrated by Slug. 01572_ Acquired 10 matter. 01573_ B-36 Bruiser suffers critical hit (Destroy). 01573_ K-01 Serf collects debris. Map ----- +----------------------------------------------------+ | ?????????????????????????????????????????????????? | | ?????????????????????????????????????????????????? | | ?????????????????????????????????????????????????? | | ?????????????????????????????????????????????????? | | ?????????????????????????????????????????????????? | | ?????????????????????????????????????????????????? | | ?????????????????????????????????????????????????? | | ?????????????????????????????????????????????????? | | ?????????????????????????????????????????????????? | | ???????????????#?????????????????????????????????? | | ???????????? ? #?????????????????????????????????? | | ???????????# ##????????????????????????????????? | | ??????????? ###??????????????????????????????? | | ??????????? ??????????????????????????????? | | ??????????? ???????????????????????????????? | | ??????????? """???????????????????????????????? | | ######????? """???????????????????????????????? | | #?#### """ "??????????????????????????? | | ### """ ?????????????????????????? | | ?????????????????????????? | | ## ! ?????????????????????????? | | ## #############????????????????????????? | | ####### #?# """T""" #????????????????????????? | | ??????# #?# #????????????????????????? | | #######== #?# s ##########???????????????? | | " #[%! #?# s a/@ ????????? | | # *! #######+##############???????????????? | | "" %# #??????????????????????????? | | "" !+% #??????????????????????????? | | "" # #??????????????????????????? | | # % #??????????????????????????? | | # !! #??????????????????????????? | | # %[! +??????????????????????????? | | #####/# * #??????????????????????????? | | ????# ## #??????????????????????????? | | ????# ## !! #??????????????????????????? | | ????# ## " !! #??????????????????????????? | | ????? #######%"! +??????????????????????????? | | ????? #?????#" #??????????????????????????? | | ????? #?????# #??????????????????????????? | | ????? #?????# #??????????????????????????? | | ????? ??????# #??????????????????????????? | | ????? ?????? #??????????????????????????? | | ????? ?????? ??????????????????????????? | | ???????????? ##?????????????????????????? | | ????????????########+##??????????????????????????? | | ?????????????????????????????????????????????????? | | ?????????????????????????????]???????????????????? | | ?????????????????????????????????????????????????? | | ?????????????????????????????????????????????????? | +----------------------------------------------------+ Best States ------------- Heat Dissipation 31 Energy Generation 15 Energy Capacity 265 Matter Stores 500 Matter Capacity 500 Sight Range 16 Terrain Scan Range 16 Terrain Scan Density 10 Armor Coverage 160 Core Shielding 20 Propulsion Shielding 33 Evasion (%) 55 Offensive Hacking 10 Item Schematics ----------------- None Robot Schematics ------------------ None Fabricated ------------ Nothing Repaired ---------- Nothing Studied --------- Aluminum Leg | -9/Materials | Hacked Autogun | -9/Materials | Hacked Beam Rifle | -9/Materials | Hacked Shotgun | -9/Materials | Hacked Lgt. Deuterium Engine | -8/Materials | Hacked Rnf. Ion Engine | -8/Materials | Hacked Alien Tech Used ----------------- None Achievements -------------- None Challenges ------------ None Game ------ Seed RocketClaymoresLink Manual? 0 Play Time 00:27:13 Cumulative 57.1 hours Start 2025.11.07 @ 16:08:07 End 2025.11.07 @ 16:32:47 Sessions 1 Manual Loads 0 Difficulty Rogue Special Mode None Game No. 59 Rogue 59 Adventurer 0 Explorer 0 Win Type - Total 1 Types 1/0/0/0/0/0/0/0/0/0 Lore% 36 Gallery% 38 Achievement% 30 Wizard Run 0 Options --------- Layout 1 ASCII 0 Keyboard 0 Movement Numpad Keybinds 0 Fullscreen 2 Font 32/SmallcapsGlow Map View 50x35 Zoom Use 0% Tactical HUD 1 Map Filters NONE Filters NONE Steam 1 RUN: 3ae87d47-1d09-44e3-abfe-bc84e6a507c1